Cogmind - Beta 12 @@@ ROGUE MODE // 2023.04.19 @ 18:33:18 Player: Zirov Result: Self-destructed Performance ------------- Evolutions (3) 1500 Regions Visited (8) 1600 Robots Destroyed (146) 730 Value Destroyed (5629) 5629 Prototype IDs (30) 600 Alien Tech Used (0) 0 Bonus (2084) 2084 TOTAL SCORE: 12143 Bonus ------- High Alert Combat Kills 1116 Entered Garrisons 200 Used RIF Installer 500 Aligned with FarCom 300 Friendly Fire -32 Cogmind --------- Core Integrity 51/700 Matter 202/300 Energy 100/100 System Corruption 6% Temperature Cool (0) Movement Rolling (105) Ox1 Location -7/Factory Parts ------- > --- POWER (1) -------- (None) > --- PROPULSION (4) --- Armored Wheel Armored Wheel > --- UTILITY (5) ------ High-capacity Storage Unit Advanced Visual Processing Unit Advanced Targeting Computer Dynamic Insulation System > --- WEAPON (3) ------- Autogun Katana > --- INVENTORY (20) --- Deuterium Engine Light Deuterium Engine Armored Treads Armored Treads Titanium Leg Advanced Visual Processing Unit Weapon Cycler Transmission Jammer Improved Medium Armor Plating Relay Coupler [Grunt] (23) Relay Coupler [Sentry] (25) Relay Coupler [Sentry] (23) Relay Coupler [Specialist] (27) Relay Coupler [Behemoth] (12) Heavy Laser Autogun Peak State ------------ > --- POWER ------------ Micro Fission Core > --- PROPULSION ------- Improved Heavy Treads Improved Heavy Treads > --- UTILITY ---------- Improved Heat Sink High-capacity Storage Unit Advanced Visual Processing Unit Advanced Targeting Computer Core Analyzer > --- WEAPON ----------- Autogun Enhanced Autogun KE Penetrator > --- INVENTORY -------- Deuterium Engine Light Deuterium Engine Reinforced Deuterium Engine Armored Treads Armored Treads Armored Treads Titanium Leg Armored Wheel Armored Wheel Advanced Visual Processing Unit Kinecellerator Weapon Cycler Transmission Jammer Relay Coupler [Grunt] Relay Coupler [Grunt] Dynamic Insulation System Corruption Screen Autogun Katana [Rating: 66] Favorites ----------- Power Improved Ion Engine Engine Improved Ion Engine Power Core Light Nuclear Core Propulsion Light Treads Treads Light Treads Wheel Armored Wheel Utility High-capacity Storage Unit Device Improved Heat Sink Storage High-capacity Storage Unit Processor Advanced Visual Processing Unit Hackware Relay Coupler [Demolisher] Protection Hardened Light Armor Plating Weapon Autogun Energy Gun Medium Laser Ballistic Gun Autogun Special Weapon Mining Laser Slashing Weapon Katana Build | -11 -10 -10 -10 -9 -8 -7 -7 -7 ------- Run | Jun Mat Min Exi Min Mat Fac Gar Fac Slots Evolved 6 | . . . . . 4 2 . . Power . | . . . . . . . . . Propulsion 2 | . . . . . 1 1 . . Utility 3 | . . . . . 2 1 . . Weapon 1 | . . . . . 1 . . . Parts Attached 109 | 6 14 4 . 4 27 25 21 8 Power 10 | 1 2 1 . . 1 3 1 1 Engine 5 | 1 2 1 . . . 1 . . Core 5 | . . . . . 1 2 1 1 Reactor . | . . . . . . . . . Propulsion 27 | 2 2 . . 2 7 7 5 2 Treads 22 | 2 2 . . . 6 7 5 . Leg . | . . . . . . . . . Wheel 5 | . . . . 2 1 . . 2 Hover . | . . . . . . . . . Flight . | . . . . . . . . . Utility 39 | 1 8 1 . 1 11 9 6 2 Device 16 | . 3 . . . 6 5 2 . Storage 5 | 1 3 . . . 1 . . . Processor 13 | . 2 1 . 1 4 3 1 1 Hackware 1 | . . . . . . . 1 . Protection 4 | . . . . . . 1 2 1 Artifact . | . . . . . . . . . Weapon 33 | 2 2 2 . 1 8 6 9 3 Energy Gun 2 | 1 . . . . 1 . . . Energy Cannon . | . . . . . . . . . Ballistic Gun 25 | 1 2 1 . 1 5 5 8 2 Ballistic Cannon . | . . . . . . . . . Launcher . | . . . . . . . . . Special Weapon 1 | . . 1 . . . . . . Impact Weapon . | . . . . . . . . . Slashing Weapon 5 | . . . . . 2 1 1 1 Piercing Weapon . | . . . . . . . . . Special Melee Weapon . | . . . . . . . . . Unidentified Prototypes . | . . . . . . . . . Parts Lost 25 | . . 3 . . 3 . 13 6 Power 4 | . . 1 . . 1 . . 2 Propulsion 6 | . . . . . . . 4 2 Utility 4 | . . 1 . . . . 2 1 Weapon 11 | . . 1 . . 2 . 7 1 Highest Loss Streak 6 | . . 2 . . 2 . 6 3 To Critical Strikes 3 | . . . . . 1 . . 2 Average Slot Usage (%) 93 | . 99 100 100 85 95 94 86 83 Engine 6 | . 14 14 14 14 1 . 1 . Core 3 | . . . . . 7 6 5 6 Treads 22 | . 28 28 28 . 21 30 17 12 Wheel 2 | . . . . 28 5 . . 1 Device 6 | . 8 . . . 11 9 8 7 Storage 10 | . 14 14 14 14 9 7 7 7 Processor 13 | . 4 14 14 14 15 13 16 16 Protection 2 | . . . . . . 5 4 5 Energy Gun 1 | . 8 . . . 3 . . . Ballistic Gun 19 | . 19 27 28 14 15 14 20 16 Slashing Weapon 1 | . . . . . 3 3 1 5 Naked Turns . | . . . . . . . . . Heaviest Build 75 | 11 32 30 30 37 61 75 75 59 Greatest Support 150 | 40 40 40 40 40 60 80 150 150 Greatest Overweight (x) 2 | . . . . 1 1 . 1 2 Average Overweight (x) . | . . . . . . . . . Largest Inventory Capacity 20 | 8 15 15 15 15 20 20 20 20 Average Capacity 17 | 7 14 15 15 15 19 20 20 20 Most Carried 20 | 1 15 15 15 15 20 20 20 20 Average Carried 16 | . 11 14 14 14 18 18 17 17 Final Capacity 20 | 8 15 15 15 15 20 20 20 20 Final Carried 20 | 1 15 15 15 14 20 19 18 16 Class Distribution -------------------- 38% | Mutant 25% | Scavenger-Mutant 22% | Scavenger-Skirmisher 12% | Scavenger-Gunner Dominant Class ---------------- Mutant | -10/Materials Mutant | -10/Mines Mutant | -10/Exiles Mutant | -9/Mines Scavenger-Skirmisher | -8/Materials Scavenger-Skirmisher | -7/Factory Scavenger-Gunner | -7/Garrison Scavenger-Mutant | -7/Factory Resources | -11 -10 -10 -10 -9 -8 -7 -7 -7 ----------- Run | Jun Mat Min Exi Min Mat Fac Gar Fac Matter Collected 3176 | 231 259 187 . 30 511 593 1202 163 Remotely . | . . . . . . . . . Salvage Created 5756 | . 680 257 . 215 1066 2021 1475 42 Parts 349 | . 43 25 . 14 77 102 85 3 Haulers Intercepted 5 | . 2 . . . 2 . 1 . Recyclers Shooed 2 | . 1 . . . . 1 . . Parts Field Recycled . | . . . . . . . . . Retrieved Matter . | . . . . . . . . . Parts Self-Destructed . | . . . . . . . . . Prevented . | . . . . . . . . . Kills | -11 -10 -10 -10 -9 -8 -7 -7 -7 ------- Run | Jun Mat Min Exi Min Mat Fac Gar Fac Combat Hostiles Destroyed 120 | . 15 13 . 4 19 31 37 1 Melee 8 | . . . . . 3 5 . . Guns 111 | . 15 12 . 4 16 26 37 1 Cannons 1 | . . 1 . . . . . . Classes Destroyed 16 | . 5 . . 2 5 4 . . Worker 3 | . . . . . 1 2 . . Builder 3 | . . . . 1 . 2 . . Tunneler 1 | . . . . . 1 . . . Hauler 5 | . 2 . . . 2 . 1 . Recycler 5 | . 1 . . . 1 3 . . Mechanic 1 | . . . . . 1 . . . Operator 1 | . . . . . . 1 . . Watcher 7 | . 1 . . . 3 3 . . Swarmer 41 | . 5 9 . . 7 . 20 . Grunt 54 | . 10 4 . 3 5 20 12 . Brawler 5 | . . . . . 1 3 1 . Duelist 2 | . . . . 1 . . 1 . Sentry 9 | . . . . . 6 1 2 . Hunter 3 | . . . . . . 3 . . Programmer 5 | . . . . . . 3 1 1 Heavy 1 | . . . . . . 1 . . Best Kill Streak 10 | . 3 3 . 4 5 8 10 1 Combat Bots Only 9 | . 3 3 . 3 5 6 9 1 Max Kills in Single Turn 3 | . 1 2 . 2 2 3 2 1 Gunslinging 1 | . . 1 . . . 1 1 . Exploded . | . . . . . . . . . Melee 1 | . . . . . 1 1 . . Uniques/NPCs Destroyed . | . . . . . . . . . Combat | -11 -10 -10 -10 -9 -8 -7 -7 -7 -------- Run | Jun Mat Min Exi Min Mat Fac Gar Fac Damage Taken 7319 | . 563 327 . 51 634 1109 3970 665 Core 943 | . 92 55 . . 147 79 512 58 Absorbed by Shields . | . . . . . . . . . Core Remaining (%) 71 | 100 . . . 41 73 . . . Volleys Fired 288 | . 60 23 . . 67 38 94 6 Largest 3 | . 2 2 . . 3 3 3 3 Hottest 120 | . 70 120 . . 109 94 94 69 Shots Fired 881 | . 120 46 . 14 217 185 281 18 Gun 879 | . 120 44 . 14 217 185 281 18 Cannon . | . . . . . . . . . Launcher . | . . . . . . . . . Special 2 | . . 2 . . . . . . Kinetic 810 | . 76 44 . 14 192 185 281 18 Thermal 71 | . 44 2 . . 25 . . . Explosive . | . . . . . . . . . Electromagnetic . | . . . . . . . . . Robot Hit Streak 24 | . 11 17 . 24 19 17 20 23 Robot Miss Streak 5 | . 3 4 . 1 3 2 2 5 Penetration Max 1 | . . . . . . 1 . . Secondary Targets 23 | . . 3 . . 3 3 14 . Max Gunslinging Chain 2 | . . 1 . . 1 1 2 . Autonomous 132 | . . . . 14 20 98 . . Shots Hit Robots 640 | . 75 36 . 13 156 164 188 8 Core Hits 260 | . 39 18 . 6 53 66 76 2 Critical Kills 3 | . 1 . . . . 1 1 . Critical Parts Destroyed 6 | . . . . . 1 4 1 . Critical Strikes 11 | . 2 . . . 2 5 2 . Burn 1 | . 1 . . . . . . . Destroy 9 | . 1 . . . 1 5 2 . Sever 1 | . . . . . 1 . . . Melee Attacks 50 | . . . . . 5 23 19 3 Impact . | . . . . . . . . . Slashing 50 | . . . . . 5 23 19 3 Piercing . | . . . . . . . . . Sneak Attacks 3 | . . . . . . 3 . . Combat Hostiles 1 | . . . . . . 1 . . Follow-up Attacks . | . . . . . . . . . Damage Inflicted 12466 | 2 879 483 . 326 2068 4926 3626 156 Guns 11503 | . 848 420 . 326 1912 4215 3626 156 Cannons . | . . . . . . . . . Explosions 125 | . . . . . . 125 . . Melee 728 | . . . . . 153 575 . . Ramming 58 | 2 31 11 . . 3 11 . . Kinetic 10907 | . 519 420 . 326 1645 4215 3626 156 Thermal 773 | . 329 52 . . 267 125 . . Explosive . | . . . . . . . . . Electromagnetic . | . . . . . . . . . Impact . | . . . . . . . . . Slashing 728 | . . . . . 153 575 . . Piercing . | . . . . . . . . . Highest Corruption 6 | . . . . . . . 2 6 Average Corruption 2 | . . . . . . . 1 2 Corruption Purged . | . . . . . . . . . Corruption Blocked 1 | . . . . . . . . 1 Effects 33 | . . . . . . . 24 9 Message Errors 10 | . . . . . . . 7 3 Matter Fused 6 | . . . . . . . 3 3 Heat Flow Errors 2 | . . . . . . . 1 1 Energy Discharges 4 | . . . . . . . 2 2 Parts Fused 2 | . . . . . . . 2 . Data Loss (minor) 6 | . . . . . . . 6 . Misfires 1 | . . . . . . . 1 . Alerts 1 | . . . . . . . 1 . Weapon Failures 1 | . . . . . . . 1 . Overload Shots . | . . . . . . . . . Overflow Damage 120 | . . . . . 12 108 . . Projectiles . | . . . . . . . . . Explosions 57 | . . . . . . 57 . . Melee 63 | . . . . . 12 51 . . Knockbacks 1 | . . 1 . . . . . . Impact 1 | . . 1 . . . . . . Kinetic . | . . . . . . . . . Secondary . | . . . . . . . . . Self-Inflicted Damage . | . . . . . . . . . Shots . | . . . . . . . . . Rammed 11 | 1 6 2 . . 1 1 . . Targets Rammed 11 | 1 6 2 . . 1 1 . . Kicked . | . . . . . . . . . Crushed . | . . . . . . . . . Highest Temperature 424 | . 187 34 . . 18 424 237 235 Average Temperature 67 | . 66 12 . . 18 210 25 70 Received Heat Transfer 2136 | . 159 168 . 27 324 408 870 180 Effects 2 | . . . . . . 2 . . Shutdowns 1 | . . . . . . 1 . . Short Circuit 1 | . . . . . . 1 . . Siege Activations . | . . . . . . . . . Robots Corrupted . | . . . . . . . . . Combat Hostiles . | . . . . . . . . . Parts Fried . | . . . . . . . . . Impact Corruptions . | . . . . . . . . . Robots Melted . | . . . . . . . . . Combat Hostiles . | . . . . . . . . . Parts Melted 1 | . 1 . . . . . . . Heat Transferred 1754 | . 1036 100 . . 518 100 . . Parts Sabotaged . | . . . . . . . . . Parts Stolen . | . . . . . . . . . Parts Stripped . | . . . . . . . . . Power Chain Reactions . | . . . . . . . . . Missiles Intercepted . | . . . . . . . . . Alert | -11 -10 -10 -10 -9 -8 -7 -7 -7 ------- Run | Jun Mat Min Exi Min Mat Fac Gar Fac Peak Influence 1769 | . 179 170 . 115 273 773 1769 958 Initial 928 | . . 17 . . . 85 541 928 Average 482 | . 60 62 . 17 90 474 1264 893 Maximum Alert Level 5 | . . . . . 1 3 5 3 Low Security (%) 51 | 100 100 100 . 100 87 12 . . Level 1 6 | . . . . . 12 23 . . Level 2 8 | . . . . . . 36 8 . Level 3 16 | . . . . . . 27 24 100 Level 4 11 | . . . . . . . 47 . Level 5 4 | . . . . . . . 19 . High Security . | . . . . . . . . . Max Security . | . . . . . . . . . Squads Dispatched 16 | . 3 . . . . 10 . 3 Investigation 6 | . 2 . . . . 4 . . Extermination 3 | . . . . . . 2 . 1 Reinforcement 3 | . 1 . . . . 2 . . Assault 4 | . . . . . . 2 . 2 Garrison . | . . . . . . . . . Intercept . | . . . . . . . . . Searches Triggered . | . . . . . . . . . Construction Impeded . | . . . . . . . . . Haulers Reinforced . | . . . . . . . . . Active Scanning Responses . | . . . . . . . . . Cargo Convoy Interrupts 1 | . . . . . . . . 1 Stealth | -11 -10 -10 -10 -9 -8 -7 -7 -7 --------- Run | Jun Mat Min Exi Min Mat Fac Gar Fac Distress Signals 3 | . 2 . . . 1 . . . Communications Jammed . | . . . . . . . . . Distress Signals . | . . . . . . . . . Times Spotted 183 | . 26 13 . 6 29 42 42 25 Peak Tracking Total 13 | . 4 3 . 3 6 5 9 13 Tactical Retreats 5 | . . . . . 1 1 . 3 Traps | -11 -10 -10 -10 -9 -8 -7 -7 -7 ------- Run | Jun Mat Min Exi Min Mat Fac Gar Fac Traps Triggered 5 | . 2 . . . . 1 2 . Indirectly . | . . . . . . . . . Trap Hack Attempts . | . . . . . . . . . Triggered . | . . . . . . . . . Disarmed . | . . . . . . . . . Reprogrammed . | . . . . . . . . . Reused . | . . . . . . . . . Traps Extracted . | . . . . . . . . . Installed . | . . . . . . . . . Triggered . | . . . . . . . . . Machines | -11 -10 -10 -10 -9 -8 -7 -7 -7 ---------- Run | Jun Mat Min Exi Min Mat Fac Gar Fac Machines Disabled 16 | . . . . . 2 9 5 . Max in Single Turn 3 | . . . . . 1 3 1 . Garrison Access 1 | . . . . . . . . 1 Garrison Relay 5 | . . . . . . . 5 . Machines Repaired . | . . . . . . . . . Machines Sabotaged . | . . . . . . . . . Overloaded Fab Kills . | . . . . . . . . . Hacking | -11 -10 -10 -10 -9 -8 -7 -7 -7 --------- Run | Jun Mat Min Exi Min Mat Fac Gar Fac Machines Accessed 38 | . 9 1 1 . 13 10 1 3 Terminals 25 | . 8 1 . . 10 4 1 1 Fabricators 3 | . . . . . . 3 . . Repair Stations 5 | . 1 . . . 1 2 . 1 Recycling Units . | . . . . . . . . . Scanalyzers 2 | . . . . . 2 . . . Garrison Access 2 | . . . . . . 1 . 1 Total Hacks 99 | . 28 4 1 . 40 21 1 4 Successful 46 | . 12 2 1 . 19 10 . 2 Failed 53 | . 16 2 . . 21 11 1 2 Catastrophic 11 | . 3 1 . . 1 4 1 1 Database Lockouts . | . . . . . . . . . Manual 20 | . 7 2 1 . 6 2 . 2 Terminals 70 | . 25 4 . . 27 11 1 2 Fabricators 6 | . . . . . . 6 . . Repair Stations 9 | . 3 . . . 3 2 . 1 Recycling Units . | . . . . . . . . . Scanalyzers 10 | . . . . . 10 . . . Garrison Access 3 | . . . . . . 2 . 1 Terminal Hacks 29 | . 11 2 1 . 11 4 . . Robot Analysis 2 | . 2 . . . . . . . Prototype ID Bank 3 | . 1 . . . 2 . . . Branch Access Points 4 | . 1 1 . . 2 . . . Emergency Access Points 1 | . . . . . 1 . . . Terminal Index 1 | . . . . . 1 . . . Repair Station Index 1 | . . . . . . 1 . . Alert Level 4 | . 1 . . . 1 2 . . Unreport Threat 1 | . 1 . . . . . . . Locate Traps 4 | . 1 . . . 2 1 . . Dispatch Records 1 | . . . . . 1 . . . Patrol Status 1 | . 1 . . . . . . . Investigation Status 1 | . 1 . . . . . . . Hauler Manifests 2 | . 1 . . . 1 . . . Zone Layout 2 | . 1 1 . . . . . . EX-Prototype ID Bank 1 | . . . 1 . . . . . Fabricator Hacks 5 | . . . . . . 5 . . Load Schematic 2 | . . . . . . 2 . . Build 3 | . . . . . . 3 . . Repair Station Hacks 1 | . 1 . . . . . . . Scan Component 1 | . 1 . . . . . . . Recycling Unit Hacks . | . . . . . . . . . Scanalyzer 8 | . . . . . 8 . . . Insert Component 4 | . . . . . 4 . . . Analyze 4 | . . . . . 4 . . . Garrison Access Hacks 2 | . . . . . . 1 . 1 Unlock Access 1 | . . . . . . 1 . . Seal Access 1 | . . . . . . . . 1 Unauthorized Hacks 1 | . . . . . . . . 1 Terminals 1 | . . . . . . . . 1 Operators 1 | . . . . . . . . 1 Fabricators . | . . . . . . . . . Repair Stations . | . . . . . . . . . Recycling Units . | . . . . . . . . . Scanalyzers . | . . . . . . . . . Garrison Access . | . . . . . . . . . Data Cores Recovered . | . . . . . . . . . Used . | . . . . . . . . . Hacking Detections 34 | . 7 1 . . 13 10 1 2 Full Trace Events 10 | . 4 . . . 2 4 . . Feedback Events . | . . . . . . . . . Feedback Blocked . | . . . . . . . . . Robot Schematics Acquired . | . . . . . . . . . Robots Built . | . . . . . . . . . Authchips . | . . . . . . . . . Time . | . . . . . . . . . Total Robot Build Rating . | . . . . . . . . . Part Schematics Acquired 4 | . . . . . 4 . . . Parts Built 6 | . . . . . . 6 . . Authchips . | . . . . . . . . . Time 252 | . . . . . . 252 . . Total Part Build Rating 24 | . . . . . . 24 . . Parts Repaired . | . . . . . . . . . Time . | . . . . . . . . . Parts Recycled . | . . . . . . . . . Recycled Matter . | . . . . . . . . . Retrieved Matter . | . . . . . . . . . Retrieved Components . | . . . . . . . . . Parts Scanalyzed 4 | . . . . . 4 . . . Part Schematics Acquired 4 | . . . . . 4 . . . Parts Damaged 2 | . . . . . 2 . . . Bothacking | -11 -10 -10 -10 -9 -8 -7 -7 -7 ------------ Run | Jun Mat Min Exi Min Mat Fac Gar Fac Used RIF Installer 1 | . . . . . . . 1 . Robots Hacked . | . . . . . . . . . Non-combat . | . . . . . . . . . Combat . | . . . . . . . . . Robot Hacks Applied . | . . . . . . . . . Relay Couplers Released 25 | . . . . . . . 25 . Machine Destruction 22 | . . . . . . . 22 . Programmers 3 | . . . . . . . 3 . Attached 1 | . . . . . . . 1 . Fabnet Peak Effective % . | . . . . . . . . . Robots Rewired . | . . . . . . . . . Allies Hacked . | . . . . . . . . . Hacks Repelled . | . . . . . . . . . Allies | -11 -10 -10 -10 -9 -8 -7 -7 -7 -------- Run | Jun Mat Min Exi Min Mat Fac Gar Fac Total Allies 2 | . . 2 . . . . . . Largest Group 2 | . . 2 2 . . . . . Highest-Rated Group 40 | . . 40 40 . . . . . Highest-Rated Ally 31 | . . 31 31 . . . . . Total Orders . | . . . . . . . . . Ally Attacks . | . . . . . . . . . Total Damage . | . . . . . . . . . Kills . | . . . . . . . . . Allies Corrupted . | . . . . . . . . . Allies Melted . | . . . . . . . . . Intel | -11 -10 -10 -10 -9 -8 -7 -7 -7 ------- Run | Jun Mat Min Exi Min Mat Fac Gar Fac Robot Analysis Total 2 | . 2 . . . . . . . Derelict Logs Recovered 3 | . . 2 . 1 . . . . Drone Launches . | . . . . . . . . . Drone Recoveries . | . . . . . . . . . Exploration | -11 -10 -10 -10 -9 -8 -7 -7 -7 ------------- Run | Jun Mat Min Exi Min Mat Fac Gar Fac Turns Passed 9734 | 60 1211 1212 726 570 1616 1582 2231 526 Spaces Moved 5245 | 33 608 687 453 510 764 748 1142 300 Core 3 | 3 . . . . . . . . Treads 4579 | 30 608 687 453 2 665 748 1142 244 Legs . | . . . . . . . . . Wheels 663 | . . . . 508 99 . . 56 Hover . | . . . . . . . . . Flight . | . . . . . . . . . Fastest Speed 50 | 50 160 160 160 105 90 160 160 120 Average Speed 154 | 150 160 160 160 105 156 164 161 152 Slowest Speed 250 | 160 160 160 160 160 240 167 250 160 Overloaded Moves . | . . . . . . . . . Propulsion Burnouts . | . . . . . . . . . Robots Hopped . | . . . . . . . . . Cave-ins Triggered . | . . . . . . . . . Exploration Rate (%) 60 | 3 93 98 92 98 56 21 70 9 Regions Visited 8 Branch Regions 3 Pre-discovered Areas 1 | . . . . 1 . . . . Known Exits Taken 3 | . 1 . . 1 . 1 . . Unknown Exits Taken 4 | 1 . 1 1 . 1 . . . Scrap Searched 3 | . . 1 . 2 . . . . Spaces Dug 6 | . . . . . . 1 3 2 Terrain Destroyed 105 | . . . . 12 15 63 13 2 Melee 6 | . . . . . . 1 3 2 Projectile 68 | . . . . 12 15 31 10 . AOE 30 | . . . . . . 30 . . Terrain Rammed . | . . . . . . . . . Walls Destroyed . | . . . . . . . . . Machines Disabled . | . . . . . . . . . Actions | -11 -10 -10 -10 -9 -8 -7 -7 -7 --------- Run | Jun Mat Min Exi Min Mat Fac Gar Fac Total 6297 | 40 731 752 455 546 1060 1019 1342 352 Wait 427 | . 20 26 . 22 146 151 30 32 Move 5237 | 32 607 686 452 509 763 747 1141 300 Hop . | . . . . . . . . . Pick Up 92 | 1 16 7 1 4 28 14 19 2 Fast Attach 14 | 6 3 . . . 1 . 4 . Attach 52 | . 2 3 . 4 14 8 17 4 Detach 12 | . 1 . . 2 3 2 3 1 Swap 46 | . 9 1 . . 12 17 3 4 Drop 68 | . 7 4 2 5 20 18 12 . Fire 288 | . 60 23 . . 67 38 94 6 Melee 50 | . . . . . 5 23 19 3 Ram . | . . . . . . . . . Kick . | . . . . . . . . . Crush 11 | 1 6 2 . . 1 1 . . Escape Stasis . | . . . . . . . . . Rewire . | . . . . . . . . . Trap . | . . . . . . . . . Miscellaneous . | . . . . . . . . . Route ------- -11/Junkyard -10/Materials (discovered 3 exits: *Mat x2 / *Min) -10/Mines (discovered 3 exits: *Mat x2 / *Exi) -10/Exiles (discovered 2 exits: [*Min x2]) -9/Mines (discovered 2 exits: *Mat x2) -8/Materials -7/Factory (discovered 2 exits: *Low / Gar) -7/Garrison (discovered 4 exits: *Fac x4) -7/Factory (discovered 1 exit: *Low) History --------- Turn | Location | Event 31 | -11/Junkyard | Discovered new exit (range 15) 61 | -11/Junkyard | Entered Materials 290 | -10/Materials | Discovered new exit (range 16) 302 | -10/Materials | Build established: Mutant 598 | -10/Materials | Identified exit to Materials 1122 | -10/Materials | Discovered exit to Materials (range 11) 1125 | -10/Materials | Identified exit to Mines 1272 | -10/Materials | Entered Mines 1329 | -10/Mines | Deemed a non-threat by the Exiles lab entrance 1329 | -10/Mines | Discovered new exit (range 5) 1653 | -10/Mines | Discovered exit to Materials (range 10) 1848 | -10/Mines | Learned Materials trap positions 1866 | -10/Mines | Core integrity fell below 50% 2150 | -10/Mines | Discovered exit to Materials (range 5) 2198 | -10/Mines | Found a damaged Exp. Sensor Array with a note attached 2202 | -10/Mines | Found Prototype Device 2484 | -10/Mines | Entered Exiles 2484 | -10/Exiles | Accompanied by 2 allies 2514 | -10/Exiles | Led the pair of lost Derelicts to a safe place 2524 | -10/Exiles | Met 8R-AWN 2534 | -10/Exiles | Discovered new exit (range 14) 2582 | -10/Exiles | Met EX-HEX 2628 | -10/Exiles | Met EX-BIN 2646 | -10/Exiles | Aligned with FarCom system 2648 | -10/Exiles | Given EX-Vault access code 2688 | -10/Exiles | Opened EX-Vault 2698 | -10/Exiles | Found AWS/Gauss 2731 | -10/Exiles | Warned to stay clear of 0b10 Research branches 2842 | -10/Exiles | Met EX-DEC 2871 | -10/Exiles | Visited The Gauntlet 3194 | -10/Exiles | Discovered new exit (range 12) 3210 | -10/Exiles | Left Exiles lab with AWS/Gauss 3210 | -10/Exiles | Entered Mines 3235 | -9/Mines | Met a Derelict testing a Signal Generator 3239 | -9/Mines | Found Signal Generator 3658 | -9/Mines | Learned location of Storage (-7) 3686 | -9/Mines | Discovered new exit (range 14) 3707 | -9/Mines | Discovered new exit (range 6) 3714 | -9/Mines | Identified exit to Materials 3780 | -9/Mines | Entered Materials 3780 | -8/Materials | Evolved 4 slots: Propulsion x1, Utility x2, Weapon x1 3781 | -8/Materials | Loaded intel: 23 trap records 4395 | -8/Materials | Build established: Scavenger-Skirmisher 4812 | -8/Materials | Identified Exp. Sensor Array 4985 | -8/Materials | Build established: Scavenger-Mutant 5309 | -8/Materials | Discovered new exit (range 20) 5396 | -8/Materials | Entered Factory 5396 | -7/Factory | Evolved 2 slots: Propulsion x1, Utility x1 5730 | -7/Factory | Fabricated KE Penetrator? 5894 | -7/Factory | Discovered new exit (range 18) 5929 | -7/Factory | Identified exit to Lower Caves 6380 | -7/Factory | Fabricated Arm. Treads? 6596 | -7/Factory | First assault squad dispatched 6633 | -7/Factory | Fabricated Arm. Treads (x2) 6665 | -7/Factory | Build established: Scavenger-Skirmisher 6977 | -7/Factory | Identified exit to Garrison 6978 | -7/Factory | Entered Garrison 7012 | -7/Garrison | Triggered checkpoint 7102 | -7/Garrison | Garrison Relay disabled 7212 | -7/Garrison | Destroyed 7 combat bots 7226 | -7/Garrison | Triggered checkpoint 7297 | -7/Garrison | Triggered checkpoint 7306 | -7/Garrison | Triggered checkpoint 7318 | -7/Garrison | Triggered checkpoint 7349 | -7/Garrison | Core integrity fell below 50% 7363 | -7/Garrison | Destroyed 9 combat bots 7387 | -7/Garrison | Lost 6 parts (4n2w) 7477 | -7/Garrison | Discovered new exit (range 19) 7490 | -7/Garrison | Triggered checkpoint 7512 | -7/Garrison | Garrison Relay disabled 7649 | -7/Garrison | Discovered new exit (range 12) 7650 | -7/Garrison | Build established: Scavenger-Gunner 7692 | -7/Garrison | Triggered checkpoint 7716 | -7/Garrison | Triggered checkpoint 7718 | -7/Garrison | Garrison Relay disabled 7850 | -7/Garrison | Triggered checkpoint 7874 | -7/Garrison | Garrison Relay disabled 7961 | -7/Garrison | Triggered checkpoint 8118 | -7/Garrison | Discovered new exit (range 17) 8234 | -7/Garrison | Triggered checkpoint 8239 | -7/Garrison | Garrison Relay disabled 8483 | -7/Garrison | Triggered checkpoint 8509 | -7/Garrison | Core integrity fell below 20% 8545 | -7/Garrison | Discovered new exit (range 5) 8549 | -7/Garrison | Lost 3 parts (1u2w) 8935 | -7/Garrison | Installed Relay Interface Framework 8937 | -7/Garrison | Build established: Scavenger-Mutant 9209 | -7/Garrison | Entered Factory 9449 | -7/Factory | Discovered exit to Lower Caves (range 14) 9609 | -7/Factory | First assault squad dispatched 9692 | -7/Factory | Lost 3 parts (1p2n) 9724 | -7/Factory | Cargo convoy interrupted 9735 | -7/Factory | Self-destructed Last Messages --------------- 09658_ Critical hit (Smash). 09658_ Imp. Heavy Treads destroyed. 09658_ System corrupted by crushing effect (+2). 09661_ Imp. Heavy Treads destroyed. 09672_ U-05 Engineer builds a Wall. 09698_ P5>G#Q| 09723_ X-67 Chaingunner unfolds itself. 09723_ X-62 Marksman unfolds itself. 09723_ M-28 Smith unfolds itself. 09724_ ALERT: Cargo convoy interrupted, initiating access lockdown. 09724_ K-01 Serf collects debris. 09724_ Autogun destroyed. 09726_ Imp. Light Armor Plating destroyed. 09727_ K-01 Serf collects debris. 09730_ P-60 Hacker resets M-28 Smith, system corruption cleaned. 09734_ Penetrated by Slug. 09734_ Mic. Nuclear Core destroyed. 09734_ M-28 Smith repairs A-27 Freighter. Map ----- +----------------------------------------------------+ | ?????????????????????????????????????????????????? | | ?????????????????????????????????????????????????? | | ?????????????????????????????????????????????????? | | ?????????????????????????????????????????????????? | | ?????????????????????????????????????????????????? | | ?????????????????????????????????????????????????? | | ?????????????????????????????????????????????????? | | ?????????????????????????????????????????????????? | | ?????????????????????????????????????????????????? | | ???????????????????????????????????? ????????????? | | ???????????????????????????????????? ????????????? | | ???????????????????????????????????? ####????????? | | ???????????????????????????????????? ????????? | | ???????????????????????????????????? #????????? | | ???????????????????????????????????? #????????? | | ???????????????????????????????????? #????????? | | ?????????????????????######????????? #????????? | | ?????????????????????? r +????????? ###??????? | | ???????????????????????# #????????# ???????? | | ???????????????????????# #####+####k #????????? | | ??????????????????????## #????????? | | ??????????????????????+ ! #????????? | | ??????????????????????# !! """ ! #????????? | | ??????????????????##### ! """ #????????? | | ?????####?????????# """ m ######/### | | ##?### ?????????# @ Amx % | | u Cx i | | ###### g g g p p | | """ #??#??????# ##g###+############# | | """ ####+######## ## # #?? | | """ # "%# ! ## # """#?? | | # """" """""+ ## # Y"#?? | | !] !!# """" """"%# " "" ##i# """#?? | | ]] !!# """" """""# "R"" ## # #?? | | # """" """" # """" ## # b #?? | | # # ## # """""" #?? | | ] / """T""" # ## # """""" #?? | | #######+######################## # """""" #?? | | ???#! ! ####### ######?????# # """""" #?? | | ???# = """# #?????# # #?? | | ???# """# ####### ############ ##?? | | ???# """# # # #??? | | ???# # # # #??? | | ???# """# """ """ # # """"""" #??? | | ???# """# """ """ / + """"""" #??? | | ???# """# """ """ # ! # """"""" #??? | | ???# + # # """"""" #??? | | ???########## """ """ # # #??? | | ????????????# """ """ ### ### """"""" #??? | | ????????????# """ """ #?# #?# """"""" #??? | +----------------------------------------------------+ Best States ------------- Heat Dissipation 48 Coolant Potential 50 Energy Generation 16 Energy Capacity 290 Matter Stores 300 Matter Capacity 300 Sight Range 20 Terrain Scan Density 10 EM Shielding 2 Corruption Block 8 Armor Coverage 300 Weapon Cycling 15 Melee Speed Boost 40 Evasion (%) 42 Targeting Accuracy 8 Melee Accuracy 5 Core Analysis 6 Recoil Reduction 4 Kinecelleration 30 Relay Coupler Types 1 Relay Coupler Value 21 Item Schematics ----------------- Arm. Treads | -8/Materials | Scanalyzed VSS Leg | -8/Materials | Scanalyzed Exp. Sensor Array | -8/Materials | Scanalyzed Adv. Visual Processing Unit | -8/Materials | Scanalyzed Robot Schematics ------------------ None Fabricated ------------ KE Penetrator | x2 | -7/Factory | Preloaded Arm. Treads | x2 | -7/Factory Arm. Treads | x2 | -7/Factory Alien Tech Used ----------------- None Achievements -------------- None Challenges ------------ None Game ------ Seed TransmissionDeuteriumAxe Manual? 0 Play Time 01:47:57 Cumulative 63.2 hours Start 2023.04.19 @ 16:34:54 End 2023.04.19 @ 18:33:18 Sessions 1 Manual Loads 0 Difficulty Rogue Special Mode None Game No. 60 Rogue 60 Adventurer 0 Explorer 0 Win Type - Total 0 Types 0/0/0/0/0/0/0/0/0 Lore% 27 Gallery% 34 Achievement% 26 Wizard Run 0 Options --------- ASCII 1 Keyboard 1 Movement Numpad Keybinds 0 Fullscreen 1 Font 18/SmallcapsGlow Map View 76x50 Tactical HUD 1 Map Filters NONE Filters NONE Steam 1 RUN: 73bc5f33-9013-4f72-8c35-f23c339f6f34